Workbook

Sheet 总成绩
A1: 江口县2024年公开招聘（人才引进）事业单位工作人员总成绩及排名
A2: 序号 | B2: 姓名 | C2: 性别 | D2: 准考证号 | E2: 报考岗位代码及名称 | F2: 报考单位 | G2: 笔试成绩 | H2: 笔试折算成绩 | I2: 面试成绩 | J2: 面试折算成绩 | K2: 总成绩 | L2: 名次 | M2: 是否签约环节 | N2: 是否进入体检环节 | O2: 备注
A3: 1 | B3: 张靓杰 | C3: 女 | D3: 20240602102 | E3: 22206000101幼儿教师 | F3: 江口县城区幼儿园 | G3: 193.5 | H3: =G3/3*0.6 -> 38.7 | I3: 82.13 | J3: =I3*0.4 -> 32.85 | K3: =H3+J3 -> 71.55 | L3: 1 | N3: 是
A4: 2 | B4: 潘琴 | C4: 女 | D4: 20240602101 | E4: 22206000101幼儿教师 | F4: 江口县城区幼儿园 | G4: 193.5 | H4: 38.7 | I4: 81.29 | J4: 32.52 | K4: 71.22 | L4: 2 | N4: 是
A5: 3 | B5: 郑琴 | C5: 女 | D5: 20240602103 | E5: 22206000101幼儿教师 | F5: 江口县城区幼儿园 | G5: 180.5 | H5: 36.1 | I5: 85.40 | J5: 34.16 | K5: 70.26 | L5: 3 | N5: 是
A6: 4 | B6: 刘慢 | C6: 女 | D6: 20240602108 | E6: 22206000101幼儿教师 | F6: 江口县城区幼儿园 | G6: 173 | H6: 34.6 | I6: 83.54 | J6: 33.42 | K6: 68.02 | L6: 4
A7: 5 | B7: 周江芬 | C7: 女 | D7: 20240602105 | E7: 22206000101幼儿教师 | F7: 江口县城区幼儿园 | G7: 176 | H7: 35.2 | I7: 81.26 | J7: 32.50 | K7: 67.70 | L7: 5
A8: 6 | B8: 龙妤竹 | C8: 女 | D8: 20240602106 | E8: 22206000101幼儿教师 | F8: 江口县城区幼儿园 | G8: 175.5 | H8: 35.1 | I8: 77.64 | J8: 31.06 | K8: 66.16 | L8: 6
A9: 7 | B9: 金娜 | C9: 女 | D9: 20240602109 | E9: 22206000101幼儿教师 | F9: 江口县城区幼儿园 | G9: 171.5 | H9: 34.3 | I9: 78.90 | J9: 31.56 | K9: 65.86 | L9: 7
A10: 8 | B10: 张艳 | C10: 女 | D10: 20240602107 | E10: 22206000101幼儿教师 | F10: 江口县城区幼儿园 | G10: 174.5 | H10: 34.9 | I10: 77.28 | J10: 30.91 | K10: 65.81 | L10: 8
A11: 9 | B11: 龙翾 | C11: 女 | D11: 20240602104 | E11: 22206000101幼儿教师 | F11: 江口县城区幼儿园 | G11: 178 | H11: 35.6 | I11: 73.86 | J11: 29.54 | K11: 65.14 | L11: 9
A12: 10 | B12: 黄佳怡 | C12: 女 | D12: 20240602111 | E12: 22206000202音乐教师 | F12: 江口县城区小学 | G12: 174.5 | H12: 34.9 | I12: 84.10 | J12: 33.64 | K12: 68.54 | L12: 1 | N12: 是
A13: 11 | B13: 张雪娅 | C13: 女 | D13: 20240602112 | E13: 22206000202音乐教师 | F13: 江口县城区小学 | G13: 169.5 | H13: 33.9 | I13: 81.50 | J13: 32.60 | K13: 66.50 | L13: 2 | N13: 是
A14: 12 | B14: 黄怡 | C14: 女 | D14: 20240602110 | E14: 22206000202音乐教师 | F14: 江口县城区小学 | G14: 179.5 | H14: 35.9 | I14: 76.36 | J14: 30.54 | K14: 66.44 | L14: 3
A15: 13 | B15: 万露瑶 | C15: 女 | D15: 20240602115 | E15: 22206000202音乐教师 | F15: 江口县城区小学 | G15: 160 | H15: 32 | I15: 79.10 | J15: 31.64 | K15: 63.64 | L15: 4
A16: 14 | B16: 杨紫云 | C16: 女 | D16: 20240602113 | E16: 22206000202音乐教师 | F16: 江口县城区小学 | G16: 164.5 | H16: 32.9 | I16: 75.94 | J16: 30.38 | K16: 63.28 | L16: 5
A17: 15 | B17: 田云飞 | C17: 女 | D17: 20240602114 | E17: 22206000202音乐教师 | F17: 江口县城区小学 | G17: 161.5 | H17: 32.3 | I17: 77.40 | J17: 30.96 | K17: 63.26 | L17: 6
A18: 16 | B18: 田润 | C18: 男 | D18: 20240602116 | E18: 22206000303体育教师 | F18: 江口县城区小学 | G18: 180.5 | H18: 36.1 | I18: 84.32 | J18: 33.73 | K18: 69.83 | L18: 1 | N18: 是
A19: 17 | B19: 任粤粤 | C19: 男 | D19: 20240602117 | E19: 22206000303体育教师 | F19: 江口县城区小学 | G19: 173.5 | H19: 34.7 | I19: 85.39 | J19: 34.16 | K19: 68.86 | L19: 2 | N19: 是
A20: 18 | B20: 彭兵兵 | C20: 男 | D20: 20240602119 | E20: 22206000303体育教师 | F20: 江口县城区小学 | G20: 165 | H20: 33 | I20: 81.66 | J20: 32.66 | K20: 65.66 | L20: 3
A21: 19 | B21: 郑艳 | C21: 女 | D21: 20240602120 | E21: 22206000303体育教师 | F21: 江口县城区小学 | G21: 164 | H21: 32.8 | I21: 81.16 | J21: 32.46 | K21: 65.26 | L21: 4
A22: 20 | B22: 杨岷杰 | C22: 男 | D22: 20240602118 | E22: 22206000303体育教师 | F22: 江口县城区小学 | G22: 165 | H22: 33 | I22: 78.90 | J22: 31.56 | K22: 64.56 | L22: 5
A23: 21 | B23: 龙华 | C23: 女 | D23: 20240602121 | E23: 22206000303体育教师 | F23: 江口县城区小学 | G23: 159 | H23: 31.8 | I23: 77.54 | J23: 31.02 | K23: 62.82 | L23: 6
A24: 22 | B24: 王娇雪 | C24: 女 | D24: 20240602122 | E24: 22206000404心理健康教师 | F24: 江口县第二小学 | G24: 205 | H24: 41 | I24: 82.92 | J24: 33.17 | K24: 74.17 | L24: 1 | N24: 是
A25: 23 | B25: 田颖 | C25: 女 | D25: 20240602123 | E25: 22206000404心理健康教师 | F25: 江口县第二小学 | G25: 184 | H25: 36.8 | I25: 80.38 | J25: 32.15 | K25: 68.95 | L25: 2
A26: 24 | B26: 沈敏 | C26: 女 | D26: 20240602124 | E26: 22206000404心理健康教师 | F26: 江口县第二小学 | G26: 176.5 | H26: 35.3 | I26: 77.80 | J26: 31.12 | K26: 66.42 | L26: 3
A27: 25 | B27: 廖星 | C27: 女 | D27: 20240602201 | E27: 22206000505英语教师 | F27: 江口县第四中学 | G27: 186 | H27: 37.2 | I27: 77.62 | J27: 31.05 | K27: 68.25 | L27: 1 | N27: 是
A28: 26 | B28: 刘影 | C28: 女 | D28: 20240602203 | E28: 22206000505英语教师 | F28: 江口县第四中学 | G28: 179.5 | H28: 35.9 | I28: 80.76 | J28: 32.30 | K28: 68.20 | L28: 2
A29: 27 | B29: 谭寅秀 | C29: 女 | D29: 20240602202 | E29: 22206000505英语教师 | F29: 江口县第四中学 | G29: 183 | H29: 36.6 | I29: 76.24 | J29: 30.50 | K29: 67.10 | L29: 3
A30: 28 | B30: 郭卓兰 | C30: 女 | D30: 20240602204 | E30: 22206000506英语教师 | F30: 江口县第四中学 | G30: 205 | H30: 41 | I30: 79.80 | J30: 31.92 | K30: 72.92 | L30: 1 | N30: 是
A31: 29 | B31: 冉丹丹 | C31: 女 | D31: 20240602205 | E31: 22206000506英语教师 | F31: 江口县第四中学 | G31: 195 | H31: 39 | I31: 76.14 | J31: 30.46 | K31: 69.46 | L31: 2
A32: 30 | B32: 熊知美 | C32: 女 | D32: 20240602501 | E32: 22206000507临床医生 | F32: 江口县中医医院 | G32: 181.8 | H32: =G32/3*0.6 -> 36.36 | I32: 76.54 | J32: =I32*0.4 -> 30.62 | K32: =H32+J32 -> 66.98 | L32: 1 | N32: 是
A33: 31 | B33: 龙举 | C33: 男 | D33: 20240602502 | E33: 22206000507临床医生 | F33: 江口县中医医院 | G33: 153.8 | H33: =G33/3*0.6 -> 30.76 | I33: 70.56 | J33: =I33*0.4 -> 28.22 | K33: =H33+J33 -> 58.98 | L33: 2
A34: 32 | B34: 杨鐘情 | C34: 男 | D34: 20240602503 | E34: 22206000507临床医生 | F34: 江口县中医医院 | G34: 141.4 | H34: =G34/3*0.6 -> 28.28 | I34: 0 | J34: =I34*0.4 -> 0.00 | K34: =H34+J34 -> 28.28 | L34: 3
A35: 33 | B35: 张青松 | C35: 男 | D35: 20240602506 | E35: 22206000508工作人员 | F35: 江口县疾病预防控制中心 | G35: 205.5 | H35: =G35/3*0.6 -> 41.1 | I35: 80.22 | J35: =I35*0.4 -> 32.09 | K35: =H35+J35 -> 73.19 | L35: 1 | N35: 是
A36: 34 | B36: 祝林鑫 | C36: 女 | D36: 20240602507 | E36: 22206000508工作人员 | F36: 江口县疾病预防控制中心 | G36: 193 | H36: 38.6 | I36: 81.68 | J36: 32.67 | K36: 71.27 | L36: 2
A37: 35 | B37: 陈浪 | C37: 男 | D37: 20240602508 | E37: 22206000510工作人员 | F37: 江口县乡镇卫生院 | G37: 186.5 | H37: 37.3 | I37: 80.52 | J37: 32.21 | K37: 69.51 | L37: 1 | N37: 是
A38: 36 | B38: 杨先宇 | C38: 女 | D38: 20240602510 | E38: 22206000510工作人员 | F38: 江口县乡镇卫生院 | G38: 178 | H38: 35.6 | I38: 83.72 | J38: 33.49 | K38: 69.09 | L38: 2 | N38: 是
A39: 37 | B39: 郭诗誉 | C39: 女 | D39: 20240602511 | E39: 22206000510工作人员 | F39: 江口县乡镇卫生院 | G39: 176.5 | H39: 35.3 | I39: 81.54 | J39: 32.62 | K39: 67.92 | L39: 3
A40: 38 | B40: 王浩东 | C40: 男 | D40: 20240602513 | E40: 22206000510工作人员 | F40: 江口县乡镇卫生院 | G40: 169 | H40: 33.8 | I40: 82.70 | J40: 33.08 | K40: 66.88 | L40: 4
A41: 39 | B41: 左全鑫 | C41: 女 | D41: 20240602512 | E41: 22206000510工作人员 | F41: 江口县乡镇卫生院 | G41: 169.5 | H41: 33.9 | I41: 79.66 | J41: 31.86 | K41: 65.76 | L41: 5
A42: 40 | B42: 万前瑜 | C42: 女 | D42: 20240602509 | E42: 22206000510工作人员 | F42: 江口县乡镇卫生院 | G42: 185 | H42: 37 | I42: 缺考 | K42: 37.00 | L42: 6
A43: 41 | B43: 彭佳琪 | C43: 女 | D43: 20240602609 | E43: 22206000511工作人员 | F43: 江口县党员电化教育中心 | G43: 188.5 | H43: =G43/3*0.6 -> 37.7 | I43: 80.72 | J43: =I43*0.4 -> 32.29 | K43: =H43+J43 -> 69.99 | L43: 1 | N43: 是
A44: 42 | B44: 施炼 | C44: 女 | D44: 20240602606 | E44: 22206000511工作人员 | F44: 江口县党员电化教育中心 | G44: 201 | H44: =G44/3*0.6 -> 40.2 | I44: 73.02 | J44: =I44*0.4 -> 29.21 | K44: 69.41 | L44: 2
A45: 43 | B45: 刘天刚 | C45: 男 | D45: 20240602607 | E45: 22206000511工作人员 | F45: 江口县党员电化教育中心 | G45: 189.5 | H45: =G45/3*0.6 -> 37.9 | I45: 78.04 | J45: =I45*0.4 -> 31.22 | K45: 69.12 | L45: 3
A46: 44 | B46: 滕依依 | C46: 女 | D46: 20240602608 | E46: 22206000511工作人员 | F46: 江口县党员电化教育中心 | G46: 188.5 | H46: =G46/3*0.6 -> 37.7 | I46: 缺考 | K46: 37.70 | L46: 4
A47: 45 | B47: 李冲 | C47: 男 | D47: 20240602610 | E47: 22206000512工作人员 | F47: 江口县社情民意中心 | G47: 194.5 | H47: =G47/3*0.6 -> 38.9 | I47: 73.84 | J47: =I47*0.4 -> 29.54 | K47: 68.44 | L47: 1 | N47: 是
A48: 46 | B48: 吴易霞 | C48: 女 | D48: 20240602611 | E48: 22206000512工作人员 | F48: 江口县社情民意中心 | G48: 191 | H48: 38.2 | I48: 73.80 | J48: 29.52 | K48: 67.72 | L48: 2
A49: 47 | B49: 姚浩 | C49: 男 | D49: 20240602612 | E49: 22206000512工作人员 | F49: 江口县社情民意中心 | G49: 187 | H49: 37.4 | I49: 74.88 | J49: 29.95 | K49: 67.35 | L49: 3
A50: 48 | B50: 易思言 | C50: 女 | D50: 20240602613 | E50: 22206000513工作人员 | F50: 江口县财政局乡镇分局 | G50: 205 | H50: 41 | I50: 76.54 | J50: 30.62 | K50: 71.62 | L50: 1 | N50: 是
A51: 49 | B51: 喻选琴 | C51: 女 | D51: 20240602614 | E51: 22206000513工作人员 | F51: 江口县财政局乡镇分局 | G51: 189 | H51: 37.8 | I51: 80.02 | J51: 32.01 | K51: 69.81 | L51: 2 | N51: 是
A52: 50 | B52: 姜文凤 | C52: 女 | D52: 20240602616 | E52: 22206000513工作人员 | F52: 江口县财政局乡镇分局 | G52: 178 | H52: 35.6 | I52: 77.20 | J52: 30.88 | K52: 66.48 | L52: 3
A53: 51 | B53: 龙柳琴 | C53: 女 | D53: 20240602617 | E53: 22206000513工作人员 | F53: 江口县财政局乡镇分局 | G53: 174.5 | H53: 34.9 | I53: 75.38 | J53: 30.15 | K53: 65.05 | L53: 4
A54: 52 | B54: 舒丹 | C54: 女 | D54: 20240602618 | E54: 22206000513工作人员 | F54: 江口县财政局乡镇分局 | G54: 174 | H54: 34.8 | I54: 71.66 | J54: 28.66 | K54: 63.46 | L54: 5
A55: 53 | B55: 舒畅 | C55: 女 | D55: 20240602615 | E55: 22206000513工作人员 | F55: 江口县财政局乡镇分局 | G55: 189 | H55: 37.8 | I55: 缺考 | K55: 37.80 | L55: 6
A56: 54 | B56: 万琪 | C56: 女 | D56: 20240602621 | E56: 22206000514工作人员 | F56: 江口县坝盘镇自然资源所 | G56: 195.5 | H56: 39.1 | I56: 77.96 | J56: =I56*0.4 -> 31.18 | K56: 70.28 | L56: 1 | N56: 是
A57: 55 | B57: 田心怡 | C57: 女 | D57: 20240602622 | E57: 22206000514工作人员 | F57: 江口县坝盘镇自然资源所 | G57: 195.5 | H57: 39.1 | I57: 77.74 | J57: =I57*0.4 -> 31.10 | K57: 70.20 | L57: 2
A58: 56 | B58: 阳开华 | C58: 男 | D58: 20240602620 | E58: 22206000514工作人员 | F58: 江口县坝盘镇自然资源所 | G58: 196 | H58: 39.2 | I58: 76.04 | J58: =I58*0.4 -> 30.42 | K58: 69.62 | L58: 3
A59: 57 | B59: 简砺锋 | C59: 男 | D59: 20240602619 | E59: 22206000514工作人员 | F59: 江口县坝盘镇自然资源所 | G59: 196 | H59: 39.2 | I59: 缺考 | K59: 39.20 | L59: 4
A60: 58 | B60: 姜攀 | C60: 男 | D60: 20240602623 | E60: 22206000515工作人员 | F60: 江口县原种场 | G60: 197.5 | H60: 39.5 | I60: 76.92 | J60: =I60*0.4 -> 30.77 | K60: 70.27 | L60: 1 | N60: 是
A61: 59 | B61: 杨俊 | C61: 男 | D61: 20240602624 | E61: 22206000515工作人员 | F61: 江口县原种场 | G61: 184 | H61: 36.8 | I61: 73.46 | J61: 29.38 | K61: 66.18 | L61: 2
A62: 60 | B62: 蒋秀宇 | C62: 男 | D62: 20240602625 | E62: 22206000515工作人员 | F62: 江口县原种场 | G62: 168 | H62: 33.6 | I62: 76.12 | J62: 30.45 | K62: 64.05 | L62: 3
A63: 61 | B63: 吴金玉 | C63: 女 | D63: 20240602626 | E63: 22206000516工作人员 | F63: 江口县双江街道林业环保站 | G63: 181.5 | H63: 36.3 | I63: 72.64 | J63: 29.06 | K63: 65.36 | L63: 1 | N63: 是
A64: 62 | B64: 吴佳敏 | C64: 女 | D64: 20240602627 | E64: 22206000516工作人员 | F64: 江口县双江街道林业环保站 | G64: 176 | H64: 35.2 | I64: 73.34 | J64: 29.34 | K64: 64.54 | L64: 2
A65: 63 | B65: 杨涵 | C65: 男 | D65: 20240602628 | E65: 22206000516工作人员 | F65: 江口县双江街道林业环保站 | G65: 166 | H65: 33.2 | I65: 73.72 | J65: 29.49 | K65: 62.69 | L65: 3
A66: 64 | B66: 刘敏 | C66: 女 | D66: 20240602701 | E66: 22206000517工作人员 | F66: 江口县乡镇（街道）农业服务中心 | G66: 224 | H66: 44.8 | I66: 80.80 | J66: 32.32 | K66: 77.12 | L66: 1 | N66: 是
A67: 65 | B67: 古文军 | C67: 男 | D67: 20240602702 | E67: 22206000517工作人员 | F67: 江口县乡镇（街道）农业服务中心 | G67: 218.5 | H67: 43.7 | I67: 82.04 | J67: 32.82 | K67: 76.52 | L67: 2 | N67: 是
A68: 66 | B68: 陈勇璋 | C68: 男 | D68: 20240602704 | E68: 22206000517工作人员 | F68: 江口县乡镇（街道）农业服务中心 | G68: 203.5 | H68: 40.7 | I68: 80.04 | J68: 32.02 | K68: 72.72 | L68: 3 | N68: 是
A69: 67 | B69: 涂昊君 | C69: 男 | D69: 20240602703 | E69: 22206000517工作人员 | F69: 江口县乡镇（街道）农业服务中心 | G69: 208.5 | H69: 41.7 | I69: 76.94 | J69: 30.78 | K69: 72.48 | L69: 4 | N69: 是
A70: 68 | B70: 肖芳 | C70: 女 | D70: 20240602710 | E70: 22206000517工作人员 | F70: 江口县乡镇（街道）农业服务中心 | G70: 192.5 | H70: 38.5 | I70: 82.72 | J70: 33.09 | K70: 71.59 | L70: 5 | N70: 是
A71: 69 | B71: 王燕玲 | C71: 女 | D71: 20240602705 | E71: 22206000517工作人员 | F71: 江口县乡镇（街道）农业服务中心 | G71: 200.5 | H71: 40.1 | I71: 78.62 | J71: 31.45 | K71: 71.55 | L71: 6 | N71: 是
A72: 70 | B72: 田紫 | C72: 女 | D72: 20240602707 | E72: 22206000517工作人员 | F72: 江口县乡镇（街道）农业服务中心 | G72: 196.5 | H72: 39.3 | I72: 79.97 | J72: 31.99 | K72: 71.29 | L72: 7
A73: 71 | B73: 杨承恩 | C73: 男 | D73: 20240602706 | E73: 22206000517工作人员 | F73: 江口县乡镇（街道）农业服务中心 | G73: 198 | H73: 39.6 | I73: 78.96 | J73: 31.58 | K73: 71.18 | L73: 8
A74: 72 | B74: 徐萍 | C74: 女 | D74: 20240602708 | E74: 22206000517工作人员 | F74: 江口县乡镇（街道）农业服务中心 | G74: 196 | H74: 39.2 | I74: 77.70 | J74: 31.08 | K74: 70.28 | L74: 9
A75: 73 | B75: 甄涛 | C75: 男 | D75: 20240602711 | E75: 22206000517工作人员 | F75: 江口县乡镇（街道）农业服务中心 | G75: 192.5 | H75: 38.5 | I75: 78.56 | J75: 31.42 | K75: 69.92 | L75: 10
A76: 74 | B76: 刘幸子 | C76: 女 | D76: 20240602712 | E76: 22206000517工作人员 | F76: 江口县乡镇（街道）农业服务中心 | G76: 192.5 | H76: 38.5 | I76: 78.54 | J76: 31.42 | K76: 69.92 | L76: 11
A77: 75 | B77: 刘震 | C77: 男 | D77: 20240602715 | E77: 22206000517工作人员 | F77: 江口县乡镇（街道）农业服务中心 | G77: 189.5 | H77: 37.9 | I77: 78.82 | J77: 31.53 | K77: 69.43 | L77: 12
A78: 76 | B78: 李云波 | C78: 男 | D78: 20240602713 | E78: 22206000517工作人员 | F78: 江口县乡镇（街道）农业服务中心 | G78: 190 | H78: 38 | I78: 78.10 | J78: 31.24 | K78: 69.24 | L78: 13
A79: 77 | B79: 李志健 | C79: 男 | D79: 20240602716 | E79: 22206000517工作人员 | F79: 江口县乡镇（街道）农业服务中心 | G79: 189 | H79: 37.8 | I79: 78.48 | J79: 31.39 | K79: 69.19 | L79: 14
A80: 78 | B80: 杨林 | C80: 男 | D80: 20240602719 | E80: 22206000517工作人员 | F80: 江口县乡镇（街道）农业服务中心 | G80: 187 | H80: 37.4 | I80: 78.30 | J80: 31.32 | K80: 68.72 | L80: 15
A81: 79 | B81: 杨丹 | C81: 女 | D81: 20240602717 | E81: 22206000517工作人员 | F81: 江口县乡镇（街道）农业服务中心 | G81: 187.5 | H81: 37.5 | I81: 78.00 | J81: 31.20 | K81: 68.70 | L81: 16
A82: 80 | B82: 方倩 | C82: 女 | D82: 20240602718 | E82: 22206000517工作人员 | F82: 江口县乡镇（街道）农业服务中心 | G82: 187 | H82: 37.4 | I82: 77.98 | J82: 31.19 | K82: 68.59 | L82: 17
A83: 81 | B83: 刘伟 | C83: 男 | D83: 20240602709 | E83: 22206000517工作人员 | F83: 江口县乡镇（街道）农业服务中心 | G83: 194.5 | H83: 38.9 | I83: 70.48 | J83: 28.19 | K83: 67.09 | L83: 18
A84: 82 | B84: 黎蕾 | C84: 女 | D84: 20240602714 | E84: 22206000517工作人员 | F84: 江口县乡镇（街道）农业服务中心 | G84: 189.5 | H84: 37.9 | I84: 70.92 | J84: 28.37 | K84: 66.27 | L84: 19
A85: 83 | B85: 杨乔文 | C85: 男 | D85: 20240602720 | E85: 22206000518工作人员 | F85: 江口县闵孝镇社会工作服务中心 | G85: 162.5 | H85: 32.5 | I85: 75.72 | J85: 30.29 | K85: 62.79 | L85: 1 | N85: 是
A86: 84 | B86: 龙乔雨 | C86: 男 | D86: 20240602721 | E86: 22206000518工作人员 | F86: 江口县闵孝镇社会工作服务中心 | G86: 131.5 | H86: 26.3 | I86: 78.08 | J86: 31.23 | K86: 57.53 | L86: 2
A87: 85 | B87: 滕檬 | C87: 女 | D87: 20240602722 | E87: 22206000519工作人员 | F87: 江口县怒溪镇农业服务中心 | G87: 204.5 | H87: 40.9 | I87: 78.78 | J87: 31.51 | K87: 72.41 | L87: 1 | N87: 是
A88: 86 | B88: 王戈 | C88: 男 | D88: 20240602723 | E88: 22206000519工作人员 | F88: 江口县怒溪镇农业服务中心 | G88: 183.5 | H88: 36.7 | I88: 67.96 | J88: 27.18 | K88: 63.88 | L88: 2
A89: 87 | B89: 李德光 | C89: 男 | D89: 20240602724 | E89: 22206000519工作人员 | F89: 江口县怒溪镇农业服务中心 | G89: 180.5 | H89: 36.1 | I89: 68.46 | J89: 27.38 | K89: 63.48 | L89: 3
A90: 88 | B90: 李锡芊 | C90: 女 | D90: 20240602725 | E90: 22206000520工作人员 | F90: 江口县德旺乡社会工作服务中心 | G90: 193 | H90: 38.6 | I90: 77.10 | J90: 30.84 | K90: 69.44 | L90: 1 | N90: 是
A91: 89 | B91: 杨玲 | C91: 女 | D91: 20240602726 | E91: 22206000520工作人员 | F91: 江口县德旺乡社会工作服务中心 | G91: 182.5 | H91: 36.5 | I91: 78.66 | J91: 31.46 | K91: 67.96 | L91: 2
A92: 90 | B92: 田晓玲 | C92: 女 | D92: 20240602727 | E92: 22206000520工作人员 | F92: 江口县德旺乡社会工作服务中心 | G92: 179 | H92: 35.8 | I92: 78.28 | J92: 31.31 | K92: 67.11 | L92: 3
A93: 91 | B93: 谯华丽 | C93: 女 | D93: 20240602416 | E93: A01语文教师 | F93: 江口中学 | I93: 83.70 | J93: 83.70 | K93: 83.70 | L93: 1 | M93: 是 | O93: 人才引进
A94: 92 | B94: 杨娜 | C94: 女 | D94: 20240602402 | E94: A01语文教师 | F94: 江口中学 | I94: 82.78 | J94: 82.78 | K94: 82.78 | L94: 2 | O94: 人才引进
A95: 93 | B95: 安丽芳 | C95: 女 | D95: 20240602413 | E95: A01语文教师 | F95: 江口中学 | I95: 81.50 | J95: 81.50 | K95: 81.50 | L95: 3 | O95: 人才引进
A96: 94 | B96: 滕之翼 | C96: 女 | D96: 20240602421 | E96: A01语文教师 | F96: 江口中学 | I96: 79.58 | J96: 79.58 | K96: 79.58 | L96: 4 | O96: 人才引进
A97: 95 | B97: 陈妮 | C97: 女 | D97: 20240602412 | E97: A01语文教师 | F97: 江口中学 | I97: 79.00 | J97: 79.00 | K97: 79.00 | L97: 5 | O97: 人才引进
A98: 96 | B98: 罗国晶 | C98: 女 | D98: 20240602418 | E98: A01语文教师 | F98: 江口中学 | I98: 78.38 | J98: 78.38 | K98: 78.38 | L98: 6 | O98: 人才引进
A99: 97 | B99: 陆雨靖 | C99: 女 | D99: 20240602404 | E99: A01语文教师 | F99: 江口中学 | I99: 77.80 | J99: 77.80 | K99: 77.80 | L99: 7 | O99: 人才引进
A100: 98 | B100: 廖德莲 | C100: 女 | D100: 20240602407 | E100: A01语文教师 | F100: 江口中学 | I100: 77.64 | J100: 77.64 | K100: 77.64 | L100: 8 | O100: 人才引进
A101: 99 | B101: 刘敏 | C101: 女 | D101: 20240602406 | E101: A01语文教师 | F101: 江口中学 | I101: 77.36 | J101: 77.36 | K101: 77.36 | L101: 9 | O101: 人才引进
A102: 100 | B102: 周朵 | C102: 女 | D102: 20240602410 | E102: A01语文教师 | F102: 江口中学 | I102: 76.84 | J102: 76.84 | K102: 76.84 | L102: 10 | O102: 人才引进
A103: 101 | B103: 龙春莎 | C103: 女 | D103: 20240602401 | E103: A01语文教师 | F103: 江口中学 | I103: 76.66 | J103: 76.66 | K103: 76.66 | L103: 11 | O103: 人才引进
A104: 102 | B104: 樊怡 | C104: 女 | D104: 20240602403 | E104: A01语文教师 | F104: 江口中学 | I104: 76.40 | J104: 76.40 | K104: 76.40 | L104: 12 | O104: 人才引进
A105: 103 | B105: 廖平 | C105: 女 | D105: 20240602415 | E105: A01语文教师 | F105: 江口中学 | I105: 73.96 | J105: 73.96 | K105: 73.96 | L105: 13 | O105: 人才引进
A106: 104 | B106: 王玉龙 | C106: 男 | D106: 20240602301 | E106: A02数学教师 | F106: 江口中学 | I106: 81.16 | J106: 81.16 | K106: 81.16 | L106: 1 | M106: 是 | O106: 人才引进
A107: 105 | B107: 杨江黔 | C107: 男 | D107: 20240602302 | E107: A02数学教师 | F107: 江口中学 | I107: 81.14 | J107: 81.14 | K107: 81.14 | L107: 2 | O107: 人才引进
A108: 106 | B108: 张阿松 | C108: 男 | D108: 20240602303 | E108: A02数学教师 | F108: 江口中学 | I108: 78.10 | J108: 78.10 | K108: 78.10 | L108: 3 | O108: 人才引进
A109: 107 | B109: 冉成薪 | C109: 女 | D109: 20240602206 | E109: A03英语教师 | F109: 江口中学 | I109: 81.84 | J109: 81.84 | K109: 81.84 | L109: 1 | M109: 是 | O109: 人才引进
A110: 108 | B110: 梅旭霜 | C110: 女 | D110: 20240602208 | E110: A03英语教师 | F110: 江口中学 | I110: 76.70 | J110: 76.70 | K110: 76.70 | L110: 2 | O110: 人才引进
A111: 109 | B111: 王可 | C111: 女 | D111: 20240602209 | E111: A03英语教师 | F111: 江口中学 | I111: 76.26 | J111: 76.26 | K111: 76.26 | L111: 3 | O111: 人才引进
A112: 110 | B112: 刘玲霞 | C112: 女 | D112: 20240602211 | E112: A03英语教师 | F112: 江口中学 | I112: 74.84 | J112: 74.84 | K112: 74.84 | L112: 4 | O112: 人才引进
A113: 111 | B113: 曾桂兰 | C113: 女 | D113: 20240602212 | E113: A04政治教师 | F113: 江口中学 | I113: 80.46 | J113: 80.46 | K113: 80.46 | L113: 1 | M113: 是 | O113: 人才引进
A114: 112 | B114: 高丽苇 | C114: 女 | D114: 20240602214 | E114: A04政治教师 | F114: 江口中学 | I114: 77.02 | J114: 77.02 | K114: 77.02 | L114: 2 | O114: 人才引进
A115: 113 | B115: 秦进 | C115: 男 | D115: 20240602213 | E115: A04政治教师 | F115: 江口中学 | I115: 76.68 | J115: 76.68 | K115: 76.68 | L115: 3 | O115: 人才引进
A116: 114 | B116: 任艳会 | C116: 女 | D116: 20240602215 | E116: A04政治教师 | F116: 江口中学 | I116: 76.58 | J116: 76.58 | K116: 76.58 | L116: 4 | O116: 人才引进
A117: 115 | B117: 朱旭敏 | C117: 女 | D117: 20240602218 | E117: A04政治教师 | F117: 江口中学 | I117: 72.70 | J117: 72.70 | K117: 72.70 | L117: 5 | O117: 人才引进
A118: 116 | B118: 刘均蓉 | C118: 女 | D118: 20240602318 | E118: A05地理教师 | F118: 江口中学 | I118: 81.54 | J118: 81.54 | K118: 81.54 | L118: 1 | M118: 是 | O118: 人才引进
A119: 117 | B119: 张欣悦 | C119: 女 | D119: 20240602305 | E119: A05地理教师 | F119: 江口中学 | I119: 80.30 | J119: 80.30 | K119: 80.30 | L119: 2 | O119: 人才引进
A120: 118 | B120: 杨卫红 | C120: 女 | D120: 20240602308 | E120: A05地理教师 | F120: 江口中学 | I120: 78.48 | J120: 78.48 | K120: 78.48 | L120: 3 | O120: 人才引进
A121: 119 | B121: 杨玲玲 | C121: 女 | D121: 20240602309 | E121: A05地理教师 | F121: 江口中学 | I121: 78.24 | J121: 78.24 | K121: 78.24 | L121: 4 | O121: 人才引进
A122: 120 | B122: 张俊 | C122: 男 | D122: 20240602317 | E122: A05地理教师 | F122: 江口中学 | I122: 78.18 | J122: 78.18 | K122: 78.18 | L122: 5 | O122: 人才引进
A123: 121 | B123: 杨银 | C123: 女 | D123: 20240602316 | E123: A05地理教师 | F123: 江口中学 | I123: 77.14 | J123: 77.14 | K123: 77.14 | L123: 6 | O123: 人才引进
A124: 122 | B124: 付苏敏 | C124: 女 | D124: 20240602306 | E124: A05地理教师 | F124: 江口中学 | I124: 76.50 | J124: 76.50 | K124: 76.50 | L124: 7 | O124: 人才引进
A125: 123 | B125: 张超 | C125: 男 | D125: 20240602315 | E125: A05地理教师 | F125: 江口中学 | I125: 76.14 | J125: 76.14 | K125: 76.14 | L125: 8 | O125: 人才引进
A126: 124 | B126: 田镇荣 | C126: 男 | D126: 20240602504 | E126: B01临床医生 | F126: 江口县人民医院 | I126: 73.50 | J126: 73.50 | K126: 73.50 | L126: 1 | M126: 是 | O126: 人才引进
A127: 125 | B127: 曾海莲 | C127: 女 | D127: 20240602514 | E127: C01工作人员 | F127: 江口县不动产登记事务中心 | I127: 81.42 | J127: 81.42 | K127: 81.42 | L127: 1 | M127: 是 | O127: 人才引进
A128: 126 | B128: 张清 | C128: 男 | D128: 20240602518 | E128: C01工作人员 | F128: 江口县不动产登记事务中心 | I128: 80.70 | J128: 80.70 | K128: 80.70 | L128: 2 | O128: 人才引进
A129: 127 | B129: 黄静 | C129: 女 | D129: 20240602517 | E129: C01工作人员 | F129: 江口县不动产登记事务中心 | I129: 80.62 | J129: 80.62 | K129: 80.62 | L129: 3 | O129: 人才引进
A130: 128 | B130: 唐术译 | C130: 男 | D130: 20240602522 | E130: C01工作人员 | F130: 江口县不动产登记事务中心 | I130: 80.62 | J130: 80.62 | K130: 80.62 | L130: 4 | O130: 人才引进
A131: 129 | B131: 黄颖异 | C131: 男 | D131: 20240602520 | E131: C01工作人员 | F131: 江口县不动产登记事务中心 | I131: 77.96 | J131: 77.96 | K131: 77.96 | L131: 5 | O131: 人才引进
A132: 130 | B132: 伍堂银 | C132: 男 | D132: 20240602516 | E132: C01工作人员 | F132: 江口县不动产登记事务中心 | I132: 77.06 | J132: 77.06 | K132: 77.06 | L132: 6 | O132: 人才引进
A133: 131 | B133: 周浩然 | C133: 男 | D133: 20240602523 | E133: C02工作人员 | F133: 江口县国有林场 | I133: 83.82 | J133: 83.82 | K133: 83.82 | L133: 1 | M133: 是 | O133: 人才引进
A134: 132 | B134: 罗常莎 | C134: 女 | D134: 20240602524 | E134: C02工作人员 | F134: 江口县国有林场 | I134: 76.00 | J134: 76.00 | K134: 76.00 | L134: 2 | O134: 人才引进
A135: 133 | B135: 蒲垚 | C135: 男 | D135: 20240602525 | E135: C02工作人员 | F135: 江口县国有林场 | I135: 75.60 | J135: 75.60 | K135: 75.60 | L135: 3 | O135: 人才引进
A136: 134 | B136: 徐雯 | C136: 女 | D136: 20240602602 | E136: C03工作人员 | F136: 江口县茶叶研究中心 | I136: 79.44 | J136: 79.44 | K136: 79.44 | L136: 1 | M136: 是 | O136: 人才引进
A137: 135 | B137: 张森稳 | C137: 男 | D137: 20240602604 | E137: C03工作人员 | F137: 江口县茶叶研究中心 | I137: 75.00 | J137: 75.00 | K137: 75.00 | L137: 2 | O137: 人才引进
A138: 136 | B138: 杨平芬 | C138: 女 | D138: 20240602605 | E138: C03工作人员 | F138: 江口县茶叶研究中心 | I138: 74.96 | J138: 74.96 | K138: 74.96 | L138: 3 | O138: 人才引进
A139: 137 | B139: 穆应花 | C139: 女 | D139: 20240602601 | E139: C03工作人员 | F139: 江口县茶叶研究中心 | I139: 73.60 | J139: 73.60 | K139: 73.60 | L139: 4 | O139: 人才引进
A140: 138 | B140: 代厚苇 | C140: 女 | D140: 20240602603 | E140: C03工作人员 | F140: 江口县茶叶研究中心 | I140: 72.88 | J140: 72.88 | K140: 72.88 | L140: 5 | O140: 人才引进
